[Event "CCT Chesscom Classic-D1 2024"]
[Site "Online"]
[Date "2024.05.10"]
[Round "1"]
[White "Duda, Jan-Krzysztof"]
[Black "Firouzja, Alireza"]
[Result "0-1"]
[ECO "A80"]
[WhiteElo "2734"]
[BlackElo "2738"]
[Annotator "TA"]
[PlyCount "60"]
[EventDate "2024.05.08"]
[EventType "k.o."]
[EventCountry "NET"]
[SourceTitle "playchess.com"]
[Source "ChessBase"]
[SourceQuality "1"]
[TimeControl "600+2"]

{[%evp 9,60,9,42,20,27,29,38,37,56,43,52,57,57,38,64,10,38,0,0,-18,0,-4,0,-24,0,0,0,-29,0,0,28,0,0,0,0,0,0,-10,-7,-19,0,-139,-122,-130,-129,-129,-136,-127,-16,-495,-488,-841,-841]} 1. d4 {[%emt 0:00:04]} f5 {[%emt 0:00:06]} 2. Nc3 {[%emt 0:00:05]} Nf6 {[%emt 0:00:01]} 3. Bg5 {[%emt 0:00:03]} d5 {[%emt 0:00:07]} 4. e3 {[%emt 0:00:05]} e6 {[%emt 0:00:24]} 5. Nf3 {[%emt 0:00:03]} Nbd7 {[%emt 0:00:06]} 6. Bd3 {[%emt 0:00:02]} h6 {[%emt 0:00:36]} 7. Bh4 {[%emt 0:00:09]} a6 {[%emt 0:00:34]} 8. Ne2 {[%emt 0:00:22] White is slightly better.} g5 {[%emt 0:00:11] Against Nf4} 9. Bg3 {[%emt 0:00:03]} Nh5 {[%emt 0:00:25]} 10. c4 {[%emt 0:00:19] aiming for cxd5.} Nxg3 {[%emt 0:00:06]} 11. hxg3 {[%emt 0:00:04] Threatens to win with cxd5.} c6 {[%emt 0:00:06]} 12. cxd5 {[%emt 0:00:55]} (12. Qc2 $14) 12... cxd5 $11 {[%emt 0:00:02]} 13. Rc1 {[%emt 0:00:19][%cal Og3g4]} Bd6 {[%emt 0:00:12]} 14. a3 {[%emt 0:00:24]} Kf7 {[%emt 0:00:11]} 15. Qd2 {[%emt 0:00:34]} Kg7 {[%emt 0:00:08]} 16. Qc3 {[%emt 0:01:01]} Nf6 {[%emt 0:01:15] Prevents g4.} 17. Ne5 {[%emt 0:00:16]} Bd7 {[%emt 0:00:10]} 18. Qd2 {[%emt 0:01:12]} Be8 {[%emt 0:00:18]} 19. f3 {[%emt 0:00:06]} Qb8 {[%emt 0:00:29]} 20. Kf2 {[%emt 0:01:17]} Bxe5 {[%emt 0:00:24]} 21. dxe5 {[%emt 0:00:00]} Qxe5 {[%emt 0:00:01]} 22. Qb4 {[%emt 0:00:01] Inhibits Qd6.} Bf7 {[%emt 0:00:15]} 23. Nd4 {[%emt 0:00:14][%cal Ob4e7]} Rac8 {[%emt 0:01:23]} 24. Rc3 {[%emt 0:00:34]} (24. Qxb7 $2 f4 (24... Rb8 25. Qc7 $14) 25. gxf4 (25. Rxc8 $2 Qxe3+ 26. Kf1 Qxd3+ 27. Ne2 Rxc8 $19) 25... gxf4 26. Nxe6+ (26. Rxc8 Qxe3+ 27. Kf1 Rxc8 $19) 26... Qxe6 $19) 24... a5 {[%emt 0:00:23] Really sharp!} 25. Qxa5 {[%emt 0:00:09] [#]} (25. Qxb7 $11 {keeps the balance.} Rxc3 (25... Rb8 26. Qa7 $14) 26. bxc3) 25... f4 $1 $17 {[%emt 0:00:02]} 26. gxf4 {[%emt 0:00:00]} gxf4 {[%emt 0:00:00]} 27. Nc2 {[%emt 0:00:09]} fxe3+ {[%emt 0:00:15]} 28. Nxe3 {[%emt 0:00:00] [#]} Rxc3 {[%emt 0:00:04]} (28... b6 $1 $17 {[%cal Rb6a5]} 29. Qb5 (29. Qxb6 $2 {is the wrong capture.} d4 $19) 29... Rxc3 30. bxc3 Qxc3) 29. Qxc3 {[%emt 0:00:23][%mdl 8192]} (29. bxc3 $11 Rc8 30. Rc1) 29... d4 $19 {[%emt 0:00:09]} 30. Nc4 {[%emt 0:00:01]} (30. Qd2 $142 dxe3+ 31. Qxe3 Qxb2+ 32. Be2) 30... Ng4+ {[%emt 0:00:04] Weighted Error Value: White=0.73/Black=0.13 (very precise) .  Loses game:     	White=1     	---        Mistake:       	White=3     	Black=1      Inaccurate:     	White=3     	Black=3      OK:         	White=10    	Black=7      Best:        	---       	Black=3      Strong:       	---       	Black=1} ({Weaker is} 30... dxc3 31. Nxe5 cxb2 32. Rb1 $14) 0-1

[Event "CCT Chesscom Classic-D1 2024"]
[Site "Online"]
[Date "2024.05.10"]
[Round "1"]
[White "Duda, Jan-Krzysztof"]
[Black "Firouzja, Alireza"]
[Result "1-0"]
[ECO "C23"]
[WhiteElo "2734"]
[BlackElo "2738"]
[Annotator "ChessBase"]
[PlyCount "85"]
[EventDate "2024.05.08"]
[EventType "k.o."]
[EventCountry "NET"]
[SourceTitle "playchess.com"]
[Source "ChessBase"]
[SourceQuality "1"]
[TimeControl "600+2"]

1. e4 {[%emt 0:00:04]} e5 {[%emt 0:02:11]} 2. Bc4 {[%emt 0:00:03]} Nf6 {[%emt 0:00:05]} 3. Qf3 {[%emt 0:00:03]} Nc6 {[%emt 0:00:06]} 4. Ne2 {[%emt 0:00:03]} Be7 {[%emt 0:00:12]} 5. Nbc3 {[%emt 0:00:12]} O-O {[%emt 0:00:06]} 6. d3 {[%emt 0:00:08]} Nd4 {[%emt 0:00:17]} 7. Nxd4 {[%emt 0:00:06]} exd4 {[%emt 0:00:02]} 8. Nd5 {[%emt 0:00:10]} Nxd5 {[%emt 0:00:04]} 9. Bxd5 {[%emt 0:00:02]} c6 {[%emt 0:00:04]} 10. Bb3 {[%emt 0:00:04]} a5 {[%emt 0:00:05]} 11. a4 {[%emt 0:00:07]} d6 {[%emt 0:00:05]} 12. O-O {[%emt 0:00:08]} Be6 {[%emt 0:00:09]} 13. Bxe6 {[%emt 0:00:05]} fxe6 {[%emt 0:00:02]} 14. Qh3 {[%emt 0:00:03]} e5 {[%emt 0:00:17]} 15. f4 {[%emt 0:00:07]} exf4 {[%emt 0:00:02]} 16. Qe6+ {[%emt 0:00:27]} Kh8 {[%emt 0:00:03]} 17. Bxf4 {[%emt 0:00:02]} Rf6 {[%emt 0:00:07]} 18. Qb3 {[%emt 0:00:17]} Qd7 {[%emt 0:00:20]} 19. Bd2 {[%emt 0:00:05]} h6 {[%emt 0:00:14]} 20. Qc4 {[%emt 0:00:19]} c5 {[%emt 0:00:07]} 21. Rxf6 {[%emt 0:00:15]} Bxf6 {[%emt 0:00:03]} 22. Rf1 {[%emt 0:00:02]} Kh7 {[%emt 0:00:18]} 23. Qd5 {[%emt 0:00:26]} Re8 {[%emt 0:00:05]} 24. Rxf6 {[%emt 0:00:33]} gxf6 {[%emt 0:00:08]} 25. Qh5 {[%emt 0:00:03]} Re5 {[%emt 0:00:15]} 26. Qxh6+ {[%emt 0:00:04]} Kg8 {[%emt 0:00:02]} 27. Qxf6 {[%emt 0:00:12]} Qg4 {[%emt 0:00:33]} 28. Qf1 {[%emt 0:00:39]} Rh5 {[%emt 0:00:21]} 29. Bf4 {[%emt 0:00:39]} Qe6 {[%emt 0:01:03]} 30. Qf3 {[%emt 0:00:03]} Rh7 {[%emt 0:00:02]} 31. b3 {[%emt 0:00:03]} Rf7 {[%emt 0:00:10]} 32. h3 {[%emt 0:00:14]} Qf6 {[%emt 0:00:08]} 33. Qg4+ {[%emt 0:00:27]} Kf8 {[%emt 0:00:15]} 34. g3 {[%emt 0:00:11]} b6 {[%emt 0:00:48]} 35. Kg2 {[%emt 0:00:08]} Rg7 {[%emt 0:00:24]} 36. Qf5 {[%emt 0:00:23]} Rf7 {[%emt 0:00:18]} 37. Qd5 {[%emt 0:00:11]} Rd7 {[%emt 0:00:26]} 38. h4 {[%emt 0:00:14]} Kg7 {[%emt 0:00:20]} 39. h5 {[%emt 0:00:12]} Qf7 {[%emt 0:00:15]} 40. Qg5+ {[%emt 0:00:04]} Kh7 {[%emt 0:00:03]} 41. Qh6+ {[%emt 0:00:05]} Kg8 {[%emt 0:00:02]} 42. Bxd6 {[%emt 0:00:07]} Qh7 {[%emt 0:00:06]} 43. Qf8# {[%emt 0:00:04]} 1-0

[Event "CCT Chesscom Classic-D1 2024"]
[Site "Online"]
[Date "2024.05.10"]
[Round "1"]
[White "Keymer, Vincent"]
[Black "Sarana, Alexey"]
[Result "1-0"]
[ECO "E51"]
[WhiteElo "2726"]
[BlackElo "2706"]
[Annotator "ChessBase"]
[PlyCount "147"]
[EventDate "2024.05.08"]
[EventType "k.o."]
[EventCountry "NET"]
[SourceTitle "playchess.com"]
[Source "ChessBase"]
[SourceQuality "1"]
[TimeControl "600+2"]

1. d4 {[%emt 0:00:03]} Nf6 {[%emt 0:00:04]} 2. c4 {[%emt 0:00:01]} e6 {[%emt 0:00:01]} 3. Nc3 {[%emt 0:00:14]} Bb4 {[%emt 0:00:01]} 4. e3 {[%emt 0:00:02]} O-O {[%emt 0:00:02]} 5. Bd2 {[%emt 0:00:01]} d5 {[%emt 0:00:02]} 6. Nf3 {[%emt 0:00:02]} Nbd7 {[%emt 0:00:03]} 7. Rc1 {[%emt 0:00:02]} c6 {[%emt 0:00:14]} 8. Bd3 {[%emt 0:00:11]} Qe7 {[%emt 0:00:07]} 9. Qc2 {[%emt 0:00:06]} dxc4 {[%emt 0:00:03]} 10. Bxc4 {[%emt 0:00:00]} e5 {[%emt 0:00:01]} 11. a3 {[%emt 0:00:01]} Bd6 {[%emt 0:01:11]} 12. Ba2 {[%emt 0:00:02]} exd4 {[%emt 0:00:30]} 13. Nxd4 {[%emt 0:00:02]} Nc5 {[%emt 0:00:01]} 14. f3 {[%emt 0:00:01]} Be5 {[%emt 0:00:31]} 15. Nce2 {[%emt 0:00:15]} Bd6 {[%emt 0:00:54]} 16. O-O {[%emt 0:00:43]} g6 {[%emt 0:00:21]} 17. e4 {[%emt 0:01:16]} Nh5 {[%emt 0:00:01]} 18. g4 {[%emt 0:01:45]} Qh4 {[%emt 0:01:04]} 19. Rf2 {[%emt 0:00:07]} Ng7 {[%emt 0:00:02]} 20. e5 {[%emt 0:01:22]} Be7 {[%emt 0:00:02]} 21. Nf4 {[%emt 0:00:08]} Nce6 {[%emt 0:00:40]} 22. Ndxe6 {[%emt 0:00:12]} Bxe6 {[%emt 0:00:04]} 23. Bxe6 {[%emt 0:00:12]} fxe6 {[%emt 0:00:35]} 24. Qb3 {[%emt 0:00:03]} Bg5 {[%emt 0:01:03]} 25. Ng2 {[%emt 0:00:20]} Qh6 {[%emt 0:00:02]} 26. f4 {[%emt 0:00:02]} Be7 {[%emt 0:00:21]} 27. Rf3 {[%emt 0:00:09]} Rad8 {[%emt 0:00:26]} 28. Ba5 {[%emt 0:00:43]} Rd5 {[%emt 0:00:49]} 29. Rh3 {[%emt 0:00:05]} Qxh3 {[%emt 0:00:25]} 30. Qxh3 {[%emt 0:00:00]} Rxa5 {[%emt 0:00:00]} 31. Rd1 {[%emt 0:00:04]} Rb5 {[%emt 0:00:06]} 32. Qc3 {[%emt 0:00:41]} Rc5 {[%emt 0:00:07]} 33. Qb3 {[%emt 0:00:33]} Rb5 {[%emt 0:00:01]} 34. Qc2 {[%emt 0:00:01]} g5 {[%emt 0:00:19]} 35. Rd7 {[%emt 0:00:40]} Rf7 {[%emt 0:00:03]} 36. Qd2 {[%emt 0:00:44]} gxf4 {[%emt 0:00:21]} 37. Nxf4 {[%emt 0:00:03]} Rxe5 {[%emt 0:00:02]} 38. h3 {[%emt 0:00:13]} Re4 {[%emt 0:00:14]} 39. Nd3 {[%emt 0:00:07]} Bg5 {[%emt 0:00:13]} 40. Qg2 {[%emt 0:00:01]} Rxd7 {[%emt 0:00:06]} 41. Qxe4 {[%emt 0:00:01]} Bf6 {[%emt 0:00:00]} 42. Kg2 {[%emt 0:00:02]} Rd4 {[%emt 0:00:02]} 43. Qe2 {[%emt 0:00:01]} b6 {[%emt 0:00:02]} 44. Nf2 {[%emt 0:00:03]} Rd5 {[%emt 0:00:04]} 45. Ne4 {[%emt 0:00:01]} Be7 {[%emt 0:00:00]} 46. Qf3 {[%emt 0:00:03]} h5 {[%emt 0:00:02]} 47. Qf4 {[%emt 0:00:03]} hxg4 {[%emt 0:00:01]} 48. hxg4 {[%emt 0:00:00]} Rd4 {[%emt 0:00:09]} 49. Qe5 {[%emt 0:00:01]} c5 {[%emt 0:00:04]} 50. Kf3 {[%emt 0:00:03]} Kf7 {[%emt 0:00:01]} 51. Qc7 {[%emt 0:00:02]} Rd3+ {[%emt 0:00:01]} 52. Ke2 {[%emt 0:00:01]} Rd4 {[%emt 0:00:01]} 53. Ke3 {[%emt 0:00:03]} Ne8 {[%emt 0:00:04]} 54. Qxa7 {[%emt 0:00:01]} b5 {[%emt 0:00:02]} 55. Nxc5 {[%emt 0:00:03]} Rxg4 {[%emt 0:00:01]} 56. Ne4 {[%emt 0:00:00]} Nf6 {[%emt 0:00:04]} 57. Nd6+ {[%emt 0:00:05]} Kf8 {[%emt 0:00:00]} 58. Nxb5 {[%emt 0:00:01]} Rg5 {[%emt 0:00:04]} 59. Qb8+ {[%emt 0:00:02]} Kg7 {[%emt 0:00:00]} 60. Kd3 {[%emt 0:00:01]} Rd5+ {[%emt 0:00:03]} 61. Kc2 {[%emt 0:00:02]} Ne4 {[%emt 0:00:01]} 62. Qb7 {[%emt 0:00:03]} Kf7 {[%emt 0:00:03]} 63. Kb1 {[%emt 0:00:02]} Nc5 {[%emt 0:00:02]} 64. Qc6 {[%emt 0:00:02]} Nd3 {[%emt 0:00:01]} 65. Nc3 {[%emt 0:00:03]} Rd4 {[%emt 0:00:00]} 66. Qf3+ {[%emt 0:00:01]} Ke8 {[%emt 0:00:01]} 67. Qe3 {[%emt 0:00:03]} Rd6 {[%emt 0:00:04]} 68. Nb5 {[%emt 0:00:00]} Rd7 {[%emt 0:00:05]} 69. Qxe6 {[%emt 0:00:01]} Nc5 {[%emt 0:00:00]} 70. Qc6 {[%emt 0:00:03]} Bf8 {[%emt 0:00:04]} 71. Ka2 {[%emt 0:00:01]} Kd8 {[%emt 0:00:02]} 72. b4 {[%emt 0:00:03]} Nd3 {[%emt 0:00:02]} 73. Kb3 {[%emt 0:00:02]} Ne5 {[%emt 0:00:02]} 74. Qf6+ {[%emt 0:00:02]} 1-0

[Event "CCT Chesscom Classic-D1 2024"]
[Site "Online"]
[Date "2024.05.10"]
[Round "1"]
[White "Keymer, Vincent"]
[Black "Sarana, Alexey"]
[Result "1/2-1/2"]
[ECO "D37"]
[WhiteElo "2726"]
[BlackElo "2706"]
[Annotator "TA"]
[PlyCount "105"]
[EventDate "2024.05.08"]
[EventType "k.o."]
[EventCountry "NET"]
[SourceTitle "playchess.com"]
[Source "ChessBase"]
[SourceQuality "1"]
[TimeControl "600+2"]

{[%evp 10,105,34,10,10,6,35,15,25,16,20,-13,-17,-39,0,-11,-7,-21,-15,-20,-12,-29,-18,-32,0,0,0,-30,-16,-20,-16,-28,-12,-38,-12,-37,-28,-60,50,54,33,26,32,26,86,56,92,61,67,56,137,142,169,105,106,102,98,98,191,187,219,183,183,182,182,182,203,223,223,223,214,213,221,170,241,235,296,296,296,234,293,287,278,210,210,8,8,7,7,7,44,52,52,52,64,52,224,67]} 1. d4 {[%emt 0:00:03]} Nf6 {[%emt 0:00:03]} 2. c4 {[%emt 0:00:01]} e6 {[%emt 0:00:00]} 3. Nf3 {[%emt 0:00:05]} d5 {[%emt 0:00:03]} 4. Nc3 {[%emt 0:00:01]} Nbd7 {[%emt 0:00:04]} 5. Bf4 {[%emt 0:00:25]} Bb4 {[%emt 0:00:14]} 6. e3 {[%emt 0:00:56]} c5 {[%emt 0:00:03]} 7. Rc1 {[%emt 0:00:50]} Qa5 {[%emt 0:01:02]} 8. Qb3 {[%emt 0:00:16]} dxc4 {[%emt 0:00:31] The position is equal.} 9. Bxc4 {[%emt 0:00:05]} b5 {[%emt 0:00:41]} 10. Be2 {[%emt 0:01:31]} (10. Bxb5 $2 Qxb5 11. Nd2 Qd3 $19) (10. Bxe6 $5 c4 11. Bxd7+ Bxd7 12. Qc2 $11) 10... c4 {[%emt 0:00:06]} 11. Qc2 {[%emt 0:00:01]} Bb7 {[%emt 0:00:09][%cal Ob7e4] Repels e4} 12. O-O {[%emt 0:00:06]} O-O {[%emt 0:00:18]} 13. Ne5 {[%emt 0:00:09]} Nb6 {[%emt 0:00:38]} 14. Bg3 {[%emt 0:00:30]} Rac8 {[%emt 0:00:09]} 15. Bh4 {[%emt 0:00:16]} (15. Bf3 {simplifies} Bxf3 16. Nxf3 Rfe8 17. e4) 15... Nfd5 {[%emt 0:00:07]} 16. Nxd5 {[%emt 0:01:45]} Nxd5 {[%emt 0:00:12]} 17. a3 {[%emt 0:00:02]} Bd6 {[%emt 0:00:02]} 18. Bg3 {[%emt 0:00:00][%cal Re5c4] Hoping for Nxc4!} Rfd8 {[%emt 0:00:08]} 19. Bh5 {[%emt 0:00:08]} (19. Nxf7 Kxf7 20. Qxh7 Nf6 21. Bh5+ Nxh5 22. Qxh5+ Ke7 (22... Kg8 23. Bxd6 Rxd6 24. Rxc4 $17)) 19... g6 {[%emt 0:00:17]} (19... Rc7 {with more complications.} 20. Rfd1 Qb6 21. Bxf7+ Rxf7 22. Nxf7 Kxf7 23. Bxd6 Rxd6 24. Qxh7 Nf6) 20. Bf3 {[%emt 0:00:03]} Qc7 {[%emt 0:00:16]} 21. Ng4 {[%emt 0:00:12]} Bxg3 {[%emt 0:00:24]} 22. hxg3 {[%emt 0:00:00]} Kg7 {[%emt 0:00:04]} 23. e4 {[%emt 0:00:04]} Nf6 {[%emt 0:00:55]} (23... h5 $1 $15 24. Nh2 Nf6) 24. Nxf6 $14 {[%emt 0:00:11]} Kxf6 {[%emt 0:00:00]} 25. Qc3 {[%emt 0:00:01][%cal Oa3a4]} Kg7 {[%emt 0:00:14]} 26. d5+ {[%emt 0:00:02]} e5 {[%emt 0:00:01]} (26... f6 $11 {keeps the balance.}) 27. Bg4 {[%emt 0:00:02]} Rb8 {[%emt 0:00:08][%cal Of7f5]} 28. f4 {[%emt 0:00:10]} Re8 {[%emt 0:00:02]} 29. Rf2 {[%emt 0:00:35]} Re7 {[%emt 0:01:15]} (29... Kg8 $14) 30. Rcf1 $16 {[%emt 0:00:30] fxe5 is the strong threat.} Rf8 {[%emt 0:00:24]} 31. fxe5 {[%emt 0:00:46]} ({Better is} 31. Kh2 $18 {And now fxe5 would win.} Kg8 32. f5) 31... Qxe5 {[%emt 0:00:47]} 32. d6 $1 $36 {[%emt 0:00:02][%mdl 2048] Keeping Black busy. Chess con chili.} Qxc3 {[%emt 0:00:48]} 33. bxc3 {[%emt 0:00:00]} Rxe4 {[%emt 0:00:00]} (33... Re5 $16) 34. Bf3 $18 {[%emt 0:00:12]} f5 {[%emt 0:00:01][%cal Bf7f5,Bf5e4,Be4e3][%mdl 32]} 35. Rb2 {[%emt 0:00:06][%cal Ob2b5]} a6 {[%emt 0:00:08][%cal Ob7a8]} 36. a4 {[%emt 0:00:01]} (36. Bxe4 Bxe4 37. g4 Rd8 $14) 36... Rd8 {[%emt 0:00:12][%cal Od8d6]} 37. axb5 {[%emt 0:00:11]} Rxd6 {[%emt 0:00:02]} 38. bxa6 {[%emt 0:00:04]} Bxa6 {[%emt 0:00:02]} 39. Bxe4 {[%emt 0:00:01]} fxe4 {[%emt 0:00:01][%mdl 4096] Endgame. KRR-KRB} 40. Rb8 {[%emt 0:00:06]} e3 {[%emt 0:00:20]} 41. Ra1 {[%emt 0:00:06]} Re6 {[%emt 0:00:08]} (41... e2 $2 42. Re1 $18) (41... Kh6 $142 42. Rab1 (42. Re8 Bb7 $18) 42... Rd7) 42. Kf1 {[%emt 0:00:05]} h5 {[%emt 0:00:08]} 43. Ke2 {[%emt 0:00:02]} Kh6 {[%emt 0:00:02]} 44. Ra5 {[%emt 0:00:17]} Kg7 {[%emt 0:00:11]} 45. Ra8 {[%emt 0:00:11]} Bb7 {[%emt 0:00:01]} 46. R5a7 {[%emt 0:00:01]} Re7 {[%emt 0:00:02] [#]} 47. Rc8 $2 {[%emt 0:00:19]} (47. Rb8 Bf3+ 48. gxf3 (48. Kxf3 Rxa7 49. Kxe3 Rd7 $11) 48... Rxa7 $11) (47. Ke1 $1 $18 {Black must now prevent Rb8.} Rf7 48. Rd8 (48. Re8 Bxg2 49. Rxf7+ Kxf7 $16)) 47... Bf3+ $11 {[%emt 0:00:09]} 48. gxf3 {[%emt 0:00:01]} (48. Kxf3 Rxa7 49. Kxe3 Re7+ 50. Kf4 Rf7+ 51. Ke3 Re7+ 52. Kf4 Rf7+ 53. Ke3 Re7+) 48... Rxa7 {[%emt 0:00:00]} 49. Rxc4 {[%emt 0:00:03][%cal Of3f4]} ({But not} 49. Kxe3 $6 Ra4 $16) 49... Re7 {[%emt 0:00:02]} 50. Re4 {[%emt 0:00:02]} Rc7 {[%emt 0:00:00]} 51. c4 {[%emt 0:00:01]} (51. Kxe3 Rxc3+ 52. Kf2 Ra3 $11) 51... Kf6 {[%emt 0:00:00] Against f4} 52. Kxe3 {[%emt 0:00:01] aiming for f4.} Kf5 {[%emt 0:00:01] [#]} ({Black should try} 52... g5 $14) 53. Rf4+ $2 {[%emt 0:00:02] Weighted Error Value: White=0.19 (very precise) /Black=0.28 (precise) .  Loses game:     	---       	Black=1      Missed win:     	White=1     	---        Mistake:       	White=2     	Black=5      Inaccurate:     	White=6     	Black=5      OK:         	White=16    	Black=16     Best:        	White=2     	Black=1      Strong:       	White=1     	---} (53. f4 $1 $18) 1/2-1/2

[Event "CCT Chesscom Classic-D1 2024"]
[Site "Online"]
[Date "2024.05.10"]
[Round "1"]
[White "Sarana, Alexey"]
[Black "Keymer, Vincent"]
[Result "0-1"]
[ECO "E49"]
[WhiteElo "2706"]
[BlackElo "2726"]
[Annotator "RC"]
[PlyCount "146"]
[EventDate "2024.05.08"]
[EventType "k.o."]
[EventCountry "NET"]
[SourceTitle "playchess.com"]
[Source "ChessBase"]
[SourceQuality "1"]
[TimeControl "600+2"]

1. d4 {[%emt 0:00:04]} Nf6 {[%emt 0:00:03]} 2. c4 {[%emt 0:00:01]} e6 {[%emt 0:00:01]} 3. Nc3 {[%emt 0:00:01]} Bb4 {[%emt 0:00:01]} 4. e3 {[%emt 0:00:02]} O-O {[%emt 0:00:01]} 5. Bd3 {[%emt 0:00:01]} d5 {[%emt 0:00:01]} 6. a3 {[%emt 0:00:02]} Bxc3+ {[%emt 0:00:01]} 7. bxc3 {[%emt 0:00:00]} dxc4 {[%emt 0:00:00]} 8. Bxc4 {[%emt 0:00:00]} c5 {[%emt 0:00:00]} 9. Ne2 {[%emt 0:00:01]} Nc6 {[%emt 0:00:26]} 10. O-O {[%emt 0:00:02]} e5 {[%emt 0:00:02]} 11. Qc2 {[%emt 0:00:07]} Qc7 {[%emt 0:01:08]} 12. Ba2 {[%emt 0:00:16]} Rd8 {[%emt 0:01:15]} 13. Bb2 {[%emt 0:00:16]} Bg4 {[%emt 0:00:38]} 14. Ng3 {[%emt 0:00:58]} Rac8 {[%emt 0:00:29]} 15. Rac1 {[%emt 0:00:28]} Qe7 {[%emt 0:00:52]} 16. h3 {[%emt 0:02:25]} Be6 {[%emt 0:00:03]} 17. Nf5 {[%emt 0:00:03]} Qd7 {[%emt 0:00:04]} 18. Bxe6 {[%emt 0:00:05]} fxe6 {[%emt 0:01:17]} 19. dxe5 {[%emt 0:01:03]} Nxe5 {[%emt 0:00:03]} 20. c4 {[%emt 0:00:05]} Nd3 {[%emt 0:00:04]} 21. Nh6+ {[%emt 0:00:04]} gxh6 {[%emt 0:01:14]} 22. Bxf6 {[%emt 0:00:02]} Nxc1 {[%emt 0:00:04]} 23. Bxd8 {[%emt 0:00:03]} Rxd8 {[%emt 0:00:02]} 24. Qxc1 {[%emt 0:00:30]} b6 {[%emt 0:00:01]} 25. Qb2 {[%emt 0:00:27]} Qg7 {[%emt 0:00:02]} 26. Qc2 {[%emt 0:00:10]} Qe5 {[%emt 0:00:42]} 27. Qa4 {[%emt 0:00:01]} Qc7 {[%emt 0:00:03]} 28. Qc2 {[%emt 0:00:29]} Qe5 {[%emt 0:00:05]} 29. a4 {[%emt 0:01:00]} a5 {[%emt 0:00:57]} 30. Rb1 {[%emt 0:00:04]} Rd6 {[%emt 0:00:02]} 31. Qe2 {[%emt 0:00:18]} h5 {[%emt 0:00:22]} 32. Qf3 {[%emt 0:00:48]} Kg7 {[%emt 0:00:01]} 33. h4 {[%emt 0:00:07]} Kg6 {[%emt 0:00:13]} 34. Qf8 {[%emt 0:00:22]} Qe4 {[%emt 0:00:23]} 35. Qg8+ {[%emt 0:00:08]} Kf6 {[%emt 0:00:09]} 36. Qf8+ {[%emt 0:00:01]} Kg6 {[%emt 0:00:02]} 37. Qg8+ {[%emt 0:00:00]} Kf6 {[%emt 0:00:01]} 38. Qg5+ {[%emt 0:00:01]} Kf7 {[%emt 0:00:04]} 39. Qxh5+ {[%emt 0:00:01]} Ke7 {[%emt 0:00:09]} 40. Rb2 {[%emt 0:00:29]} Kd8 {[%emt 0:00:06]} 41. Kh2 {[%emt 0:00:03]} Kc7 {[%emt 0:00:05]} 42. Qf7+ {[%emt 0:00:03]} Rd7 {[%emt 0:00:04]} 43. Qf6 {[%emt 0:00:01]} Qxc4 {[%emt 0:00:03]} 44. f3 {[%emt 0:00:09]} Qd5 {[%emt 0:00:04]} 45. e4 {[%emt 0:00:02]} Qd4 {[%emt 0:00:02]} 46. Qf4+ {[%emt 0:00:04]} Qd6 {[%emt 0:00:00]} 47. e5 {[%emt 0:00:06]} Qd4 {[%emt 0:00:01]} 48. Qc1 {[%emt 0:00:02]} Qxe5+ {[%emt 0:00:02]} 49. Kh3 {[%emt 0:00:01]} Rd4 {[%emt 0:00:03]} 50. Qb1 {[%emt 0:00:03]} Qf5+ {[%emt 0:00:02]} 51. Qxf5 {[%emt 0:00:02]} exf5 {[%emt 0:00:00]} 52. Ra2 {[%emt 0:00:01]} Kc6 {[%emt 0:00:02]} 53. g4 {[%emt 0:00:01]} fxg4+ {[%emt 0:00:02]} 54. fxg4 {[%emt 0:00:00]} c4 {[%emt 0:00:02]} 55. Kg3 {[%emt 0:00:01]} Kc5 {[%emt 0:00:01]} 56. g5 {[%emt 0:00:02]} c3 {[%emt 0:00:01]} 57. h5 {[%emt 0:00:01]} Rd1 {[%emt 0:00:04]} 58. g6 {[%emt 0:00:02]} hxg6 {[%emt 0:00:01]} 59. hxg6 {[%emt 0:00:01]} Rg1+ {[%emt 0:00:02]} 60. Rg2 {[%emt 0:00:00]} Rxg2+ {[%emt 0:00:03]} 61. Kxg2 {[%emt 0:00:00]} c2 {[%emt 0:00:00]} 62. g7 {[%emt 0:00:00]} c1=Q {[%emt 0:00:01]} 63. g8=Q {[%emt 0:00:01]} Qc2+ {[%emt 0:00:01]} 64. Kf3 {[%emt 0:00:03]} Qd3+ {[%emt 0:00:01]} 65. Kf2 {[%emt 0:00:01]} Qd4+ {[%emt 0:00:02]} 66. Ke1 {[%emt 0:00:01]} Kb4 {[%emt 0:00:02]} 67. Qe8 {[%emt 0:00:02]} Qc3+ {[%emt 0:00:03]} 68. Kd1 {[%emt 0:00:02]} Ka3 {[%emt 0:00:06]} 69. Qd7 {[%emt 0:00:04]} Qb3+ {[%emt 0:00:03]} 70. Kc1 {[%emt 0:00:02]} Qc4+ {[%emt 0:00:02]} 71. Kb1 {[%emt 0:00:12]} Qxa4 {[%emt 0:00:01]} 72. Qd2 {[%emt 0:00:05]} Qb4+ {[%emt 0:00:01]} 73. Ka1 {[%emt 0:00:02]} Qxd2 {[%emt 0:00:01]} 0-1